fUSD/lending_fUSD_20251123
["ID","MTS","AMOUNT","RATE_DAILY","PERIOD"]
[394760363,1763931031542,-1096.0,0.00018156,2]
[394760364,1763931031551,-195.0,0.00018477,2]
[394760365,1763931031560,-195.0,0.00018974,2]
[394760366,1763931031569,-195.0,0.00018974,2]
[394760367,1763931031577,-250.0,0.00018974,2]
[394760368,1763931031586,-193.0,0.00018974,2]
[394760369,1763931031595,-1096.0,0.00019112,2]
[394760370,1763931031604,-1096.0,0.00020118,2]
[394760371,1763931031614,-198.12310197,0.00021023,2]
[394760372,1763931031623,-250.0,0.00021023,2]
[394760373,1763931031632,-1096.0,0.00021177,2]
[394760374,1763931031641,-336.22,0.00022106,2]
[394760375,1763931031650,-168.83003689,0.00022192,42]
[394760376,1763931031658,-1160.0,0.00022239,2]
[394760377,1763931031667,-1000.0,0.0002224,2]
[394760378,1763931031676,-1096.0,0.00022291,2]
[394760379,1763931031686,-300.0,0.00022735,2]
[394760380,1763931031695,-999.0,0.00022736,3]
[394760381,1763931031704,-250.0,0.00022791,2]
[394760382,1763931031714,-1200.0,0.00022873,2]
[394760383,1763931031723,-5000.0,0.00022874,2]
[394760385,1763931031732,-2704.17,0.00022934,2]
[394760386,1763931031741,-1852.42,0.00023161,2]
[394760387,1763931031750,-167.11767703,0.00023287,2]
[394760388,1763931031759,-500.0,0.00023373,2]
[394760389,1763931031768,-183.63388632,0.00023374,2]
[394760390,1763931031777,-500.0,0.00023374,2]
[394760391,1763931031786,-519.25583615,0.00023374,2]
[394760392,1763931031795,-402.53559378,0.00023374,2]
[394760393,1763931031804,-500.0,0.00023374,2]
[394760394,1763931031813,-500.0,0.00023374,2]
[394760395,1763931031822,-500.0,0.00023374,2]
[394760396,1763931031831,-500.0,0.00023374,2]
[394760398,1763931031840,-260.30625245,0.00023374,2]
[394760399,1763931031849,-500.0,0.00023374,2]
[394760400,1763931031858,-500.0,0.00023374,2]
[394760401,1763931031867,-500.0,0.00023374,2]
[394760402,1763931031876,-577.62551188,0.00023374,2]
[394760403,1763931031885,-500.0,0.00023374,2]
[394760404,1763931031893,-500.0,0.00023374,2]
[394760405,1763931031902,-500.0,0.00023374,2]
[394760406,1763931031911,-500.0,0.00023374,2]
[394760407,1763931031920,-500.0,0.00023374,2]
[394760408,1763931031929,-500.0,0.00023374,2]
[394760409,1763931031938,-500.0,0.00023374,2]
[394760410,1763931031947,-500.0,0.00023374,2]
[394760411,1763931031956,-500.0,0.00023374,2]
[394760412,1763931031965,-500.0,0.00023374,2]
[394760413,1763931031973,-500.0,0.00023374,2]
[394760415,1763931031982,-500.0,0.00023374,2]
[394760417,1763931031991,-500.0,0.00023374,2]
[394760418,1763931032000,-500.0,0.00023374,2]
[394760419,1763931032012,-500.0,0.00023374,2]
[394760420,1763931032021,-500.0,0.00023374,2]
[394760421,1763931032030,-500.0,0.00023374,2]
[394760422,1763931032039,-500.0,0.00023374,2]
[394760423,1763931032049,-500.0,0.00023374,2]
[394760424,1763931032059,-500.0,0.00023374,2]
[394760425,1763931032067,-500.0,0.00023374,2]
[394760426,1763931032077,-500.0,0.00023374,2]
[394760427,1763931032086,-500.0,0.00023374,2]
[394760428,1763931032095,-500.0,0.00023374,2]
[394760429,1763931032104,-500.0,0.00023374,2]
[394760430,1763931032113,-500.0,0.00023374,2]
[394760431,1763931032122,-500.0,0.00023374,2]
[394760432,1763931032131,-500.0,0.00023374,2]
[394760433,1763931032140,-500.0,0.00023374,2]
[394760434,1763931032149,-500.0,0.00023374,2]
[394760435,1763931032158,-500.0,0.00023374,2]
[394760436,1763931032167,-500.0,0.00023374,2]
[394760437,1763931032176,-500.0,0.00023374,2]
[394760438,1763931032186,-500.0,0.00023374,2]
[394760439,1763931032195,-500.0,0.00023374,2]
[394760440,1763931032204,-500.0,0.00023374,2]
[394760441,1763931032214,-500.0,0.00023374,2]
[394760442,1763931032223,-500.0,0.00023374,2]
[394760443,1763931032232,-500.0,0.00023374,2]
[394760444,1763931032240,-500.0,0.00023374,2]
[394760445,1763931032249,-500.0,0.00023374,2]
[394760446,1763931032258,-306.93123856,0.00023374,2]
[394760447,1763931032267,-500.0,0.00023374,2]
[394760448,1763931032276,-500.0,0.00023374,2]
[394760449,1763931032285,-500.0,0.00023374,2]
[394760450,1763931032293,-500.0,0.00023374,2]
[394760451,1763931032302,-500.0,0.00023374,2]
[394760452,1763931032311,-501.5217109,0.00023374,2]
[394760453,1763931032320,-500.0,0.00023374,2]
[394760454,1763931032329,-500.0,0.00023374,2]
[394760455,1763931032338,-500.0,0.00023374,2]
[394760456,1763931032347,-500.0,0.00023374,2]
[394760457,1763931032356,-500.0,0.00023374,2]
[394760458,1763931032365,-500.0,0.00023374,2]
[394760459,1763931032374,-500.0,0.00023374,2]
[394760460,1763931032383,-500.0,0.00023374,2]
[394760461,1763931032392,-500.0,0.00023374,2]
[394760462,1763931032400,-500.0,0.00023374,2]
[394760463,1763931032409,-500.0,0.00023374,2]
[394760464,1763931032418,-500.0,0.00023374,2]
[394760465,1763931032426,-500.0,0.00023374,2]
[394760466,1763931032435,-500.0,0.00023374,2]
[394760467,1763931032444,-500.0,0.00023374,2]
[394760468,1763931032453,-500.0,0.00023374,2]
[394760469,1763931032462,-500.0,0.00023374,2]
[394760470,1763931032471,-500.0,0.00023374,2]
[394760471,1763931032481,-330.69312386,0.00023374,2]
[394760472,1763931032490,-500.0,0.00023374,2]
[394760473,1763931032499,-500.0,0.00023374,2]
[394760474,1763931032509,-500.0,0.00023374,2]
[394760475,1763931032518,-500.0,0.00023374,2]
[394760476,1763931032528,-500.0,0.00023374,2]
[394760477,1763931032537,-499.99999999,0.00023374,2]
[394760478,1763931032547,-500.0,0.00023374,2]
[394760479,1763931032556,-500.0,0.00023374,2]
[394760480,1763931032566,-500.0,0.00023374,2]
[394760481,1763931032576,-571.0,0.00023374,2]
[394760482,1763931032588,-404.4,0.00023374,2]
[394760483,1763931032598,-601106.67967519,0.00023375,2]
[394760484,1763931032611,-33637.27072886,0.00023375,2]
[394760485,1763931032622,-72489.63986212,0.00023375,2]
[394760486,1763931032632,-660.1,0.00023375,2]
[394760487,1763931032643,-8052.9,0.00023375,2]
[394760488,1763931032665,-1499.73759379,0.00023375,2]
[394760489,1763931032675,-13815.0,0.00023375,2]
[394760490,1763931032687,-551.77582267,0.00023375,2]
[394760491,1763931032713,-737.05343386,0.00023375,2]
[394760492,1763931032732,-457.60598217,0.00023375,2]
[394760493,1763931032745,-19501.18103683,0.00023375,2]
[394760494,1763931037451,-423.82310137,0.00021742,2]
[394760495,1763931037559,-2000.0,0.00021742,2]
[394760496,1763931037571,-1436.77970403,0.00021742,2]
[394760497,1763931037616,-9127.0771946,0.00021742,2]
[394760498,1763931037625,-7491.05586451,0.00023375,2]
[394760499,1763931037634,-1000.0,0.00023388,2]
[394760500,1763931037644,-44791.5181,0.00023388,2]
[394760501,1763931037655,-218.28985519,0.00023388,6]
[394760502,1763931037666,-205.7823,0.00023389,2]
[394760503,1763931037676,-150.99,0.00023389,2]
[394760504,1763931037686,-150.99,0.00023389,2]
[394760505,1763931037696,-9999.99,0.00023389,2]
[394760506,1763931037705,-7413.74,0.00023389,2]
[394760507,1763931037715,-9225.85,0.00023389,5]
[394760508,1763931037725,-299.99,0.00023389,7]
[394760509,1763931037734,-192.5,0.00023389,2]
[394760510,1763931037743,-9999.99,0.00023389,2]
[394760511,1763931037752,-1308.76196169,0.00023389,2]
[394760512,1763931037760,-1085.1018,0.00023452,10]
[394760513,1763931037769,-1096.0,0.00023465,2]
[394760514,1763931037778,-500.0,0.00023473,2]
[394760515,1763931037787,-151.0,0.00023475,2]
[394760516,1763931037797,-151.0,0.00023475,2]
[394760517,1763931037806,-151.0,0.00023475,2]
[394760518,1763931037815,-206.35089017,0.00023475,2]
[394760519,1763931037824,-3648.849,0.00023487,4]
[394760520,1763931037833,-244.016,0.00023487,4]
[394760521,1763931037842,-1218.45664031,0.00023488,10]
[394760522,1763931037851,-1218.45664032,0.00023488,10]
[394760523,1763931037861,-500.0,0.00023488,2]
[394760524,1763931037870,-500.0,0.00023488,2]
[394760525,1763931037879,-500.0,0.00023488,2]
[394760526,1763931037888,-500.0,0.00023488,2]
[394760527,1763931037898,-500.0,0.00023488,2]
[394760528,1763931037907,-500.0,0.00023488,2]
[394760529,1763931037917,-500.0,0.00023488,2]
[394760530,1763931037926,-500.0,0.00023488,2]
[394760531,1763931037935,-500.0,0.00023488,2]
[394760532,1763931037944,-500.0,0.00023488,2]
[394760533,1763931037953,-500.0,0.00023488,2]
[394760534,1763931037962,-500.0,0.00023488,2]
[394760535,1763931037971,-500.0,0.00023488,2]
[394760536,1763931037980,-500.0,0.00023488,2]
[394760537,1763931037989,-500.0,0.00023488,2]
[394760538,1763931037999,-500.0,0.00023488,2]
[394760539,1763931038012,-500.0,0.00023488,2]
[394760540,1763931038022,-500.0,0.00023488,2]
[394760541,1763931038032,-624.87820617,0.00023488,2]
[394760542,1763931038042,-500.0,0.00023488,2]
[394760543,1763931038052,-500.0,0.00023488,2]
[394760544,1763931038062,-500.0,0.00023488,2]
[394760545,1763931038072,-500.0,0.00023488,2]
[394760546,1763931038083,-500.0,0.00023488,2]
[394760547,1763931038093,-500.0,0.00023488,2]
[394760548,1763931038102,-500.0,0.00023488,2]
[394760549,1763931038112,-500.0,0.00023488,2]
[394760550,1763931038121,-500.0,0.00023488,2]
[394760551,1763931038131,-500.0,0.00023488,2]
[394760552,1763931038141,-32545.35200225,0.00023489,2]
[394760553,1763931038150,-214.98,0.00023507,2]
[394760554,1763931038160,-500.0,0.00023589,2]
[394760555,1763931038169,-404.4,0.00023648,2]
[394760556,1763931038179,-404.4,0.00023922,2]
[394760557,1763931038189,-9651.95,0.00023936,2]
[394760558,1763931038200,-1000.0,0.00024021,2]
[394760559,1763931038210,-404.4,0.00024196,2]
[394760560,1763931038219,-404.43,0.0002447,2]
[394760561,1763931038229,-1500.0,0.00024568,2]
[394760562,1763931038239,-386.0,0.00024687,2]
[394760563,1763931038249,-1096.0,0.000247,2]
[394760564,1763931038259,-1052.33,0.00024706,120]
[394760565,1763931038268,-366.0135026,0.00024773,2]
[394760566,1763931038278,-500.0,0.00024773,2]
[394760567,1763931038288,-500.0,0.00024773,2]
[394760568,1763931038297,-500.0,0.00024773,2]
[394760569,1763931038307,-500.0,0.00024799,2]
[394760570,1763931038317,-500.0,0.00024799,2]
[394760571,1763931038326,-500.0,0.00024799,2]
[394760572,1763931038336,-500.0,0.00024799,2]
[394760573,1763931038345,-192.43472029,0.000248,2]
[394760574,1763931038355,-500.0,0.00024899,2]
[394760575,1763931038364,-500.0,0.00024899,2]
[394760576,1763931038373,-500.0,0.00024899,2]
[394760577,1763931038383,-1000.0,0.00025021,2]
[394760578,1763931038392,-957.02634231,0.00025116,2]
[394760579,1763931038402,-1308.76196163,0.00025335,2]
[394760580,1763931038411,-500.0,0.00025868,2]
[394760581,1763931038421,-1096.0,0.00026,2]
[394760582,1763931038431,-167.11767699,0.00026223,2]
[394760583,1763931038441,-154.13,0.00026756,2]
[394760584,1763931038451,-1308.76196163,0.0002728,2]
[394760585,1763931038460,-1096.0,0.00027368,2]
[394760586,1763931038469,-240.89080885,0.00027397,2]
[394760587,1763931038479,-500.0,0.00027397,2]
[394760588,1763931038489,-500.0,0.00027397,2]
[394760589,1763931038499,-500.0,0.00027397,2]
[394760590,1763931038509,-500.0,0.00027397,2]
[394760591,1763931038519,-500.0,0.00027397,5]
[394760592,1763931038528,-213.24,0.000274,7]
[394760593,1763931038537,-177.61,0.000274,7]
[394760594,1763931038547,-192.43472027,0.00027483,2]
[394760595,1763931038556,-1000.0,0.00027801,2]
[394760596,1763931038566,-154.13,0.00028242,2]
[394760597,1763931038574,-1096.0,0.00028736,5]
[394760598,1763931038584,-167.11767699,0.00029158,15]
[394760599,1763931038593,-1308.76196163,0.00029226,2]
[394760600,1763931038603,-154.13,0.00029728,2]
[394760601,1763931038611,-192.43472027,0.00030167,2]
[394760602,1763931038620,-1096.0,0.00030173,5]
[394760603,1763931038629,-1000.0,0.00030581,2]
[394760604,1763931038639,-213.24,0.000311,30]
[394760605,1763931038648,-1308.76196163,0.00031172,2]
[394760606,1763931038658,-154.13,0.00031215,2]
[394760607,1763931038667,-1096.0,0.00031682,5]
[394760608,1763931038676,-177.61,0.000317,7]
[394760609,1763931038686,-167.11767699,0.00032094,15]
[394760610,1763931038696,-154.13,0.00032701,2]
[394760611,1763931038705,-192.43472027,0.0003285,2]
[394760612,1763931038714,-204.9643757,0.00032877,7]
[394760613,1763931038723,-214.98,0.00032909,2]
[394760614,1763931038733,-1308.76196163,0.00033117,2]
[394760615,1763931038742,-1096.0,0.00033266,5]
[394760616,1763931038751,-1000.0,0.00033361,2]
[394760617,1763931038761,-154.13,0.00034188,2]
[394760618,1763931038769,-150.0,0.00034496,7]
[394760619,1763931038779,-150.0,0.00034496,7]
[394760620,1763931038788,-185.14866466,0.00034496,7]
[394760621,1763931038797,-209.44855313,0.00034496,7]
[394760622,1763931038806,-150.0,0.00034496,7]
[394760623,1763931038815,-150.0,0.00034496,7]
[394760624,1763931038825,-150.0,0.00034496,7]
[394760625,1763931038834,-245.97209231,0.00034496,7]
[394760626,1763931038843,-150.0,0.00034496,7]
[394760627,1763931038852,-150.0,0.00034496,7]
[394760628,1763931038862,-150.0,0.00034496,7]
[394760629,1763931038871,-150.0,0.00034496,7]
[394760630,1763931038881,-150.0,0.00034496,7]
[394760631,1763931038890,-150.0,0.00034496,7]
[394760632,1763931038900,-500.0,0.00034521,2]
[394760633,1763931038910,-1096.0,0.00034929,5]
[394760634,1763931038920,-177.61,0.00035,14]
[394760635,1763931038929,-167.11767699,0.00035029,15]
[394760636,1763931038940,-150.0,0.00035043,7]
[394760637,1763931038950,-500.0,0.00035062,8]
[394760638,1763931038960,-1308.76196163,0.00035063,2]
[394760639,1763931038969,-213.24,0.000352,30]
[394760640,1763931038978,-150.0,0.00035262,7]
[394760641,1763931038988,-150.0,0.00035454,7]
[394760642,1763931038997,-150.0,0.00035454,7]
[394760643,1763931039010,-150.0,0.00035454,7]
[394760644,1763931039019,-192.43472027,0.00035533,2]
[394760645,1763931039029,-150.0,0.00035591,7]
[394760646,1763931039038,-154.13,0.00035674,2]
[394760647,1763931039048,-150.0,0.00035774,7]
[394760648,1763931039058,-150.0,0.00035774,7]
[394760649,1763931039067,-1846.0,0.00035857,2]
[394760650,1763931039076,-199.0,0.0003589,7]
[394760651,1763931039087,-576.0,0.00035914,120]
[394760652,1763931039097,-1036.94,0.00036,2]
[394760653,1763931039107,-500.0,0.00036,30]
[394760654,1763931039117,-150.0,0.00036029,7]
[394760655,1763931039127,-574.0,0.00036052,120]
[394760656,1763931039137,-150.0,0.00036139,7]
[394760657,1763931039146,-177.61,0.000362,14]
[394760658,1763931039156,-574.0,0.00036301,7]
[394760659,1763931039166,-702.0,0.00036343,120]
[394760660,1763931039176,-150.0,0.00036412,7]
[394760661,1763931039186,-150.0,0.00036412,7]
[394760662,1763931039196,-150.0,0.00036412,7]
[394760663,1763931039206,-150.0,0.00036412,7]
[394760664,1763931039216,-150.0,0.00036412,7]
[394760665,1763931039226,-150.0,0.00036412,7]
[394760666,1763931039236,-1096.0,0.00036676,5]
[394760667,1763931039246,-150.0,0.00036686,7]
[394760668,1763931039256,-150.0,0.00036796,7]
[394760669,1763931039267,-153.0,0.00036838,2]
[394760670,1763931039277,-153.0,0.00036838,2]
[394760671,1763931039287,-153.0,0.00036842,2]
[394760672,1763931039297,-153.0,0.00036845,2]
[394760673,1763931039307,-702.0,0.00036887,2]
[394760674,1763931039317,-574.0,0.00036957,7]
[394760675,1763931039327,-702.0,0.00036976,7]
[394760676,1763931039337,-500.0,0.00037,30]
[394760677,1763931039346,-1308.76196163,0.00037009,2]
[394760678,1763931039356,-150.0,0.00037051,7]
[394760679,1763931039367,-150.0,0.00037051,7]
[394760680,1763931039376,-574.0,0.00037081,7]
[394760681,1763931039386,-154.13,0.0003716,2]
[394760682,1763931039396,-576.0,0.00037192,2]
[394760683,1763931039405,-213.24,0.000372,30]
[394760684,1763931039415,-150.0,0.00037234,7]
[394760685,1763931039425,-574.0,0.00037253,2]
[394760686,1763931039435,-150.0,0.00037371,7]
[394760688,1763931039445,-150.0,0.00037371,7]
[394760690,1763931039454,-150.0,0.00037371,7]
[394760691,1763931039463,-576.0,0.0003744,2]
[394760693,1763931039473,-3436.0,0.0003744,2]
[394760695,1763931039483,-1320.0,0.0003744,2]
[394760697,1763931039492,-609.0,0.0003744,2]
[394760699,1763931039502,-1601.0,0.0003744,2]
[394760701,1763931039511,-822.0,0.0003744,2]
[394760703,1763931039521,-1192.0,0.0003744,2]
[394760705,1763931039531,-659.0,0.0003744,2]
[394760707,1763931039540,-1256.0,0.0003744,2]
[394760709,1763931039549,-2659.0,0.0003744,2]
[394760711,1763931039558,-6497.0,0.0003744,2]
[394760712,1763931039567,-252.0,0.0003744,2]
[394760713,1763931039577,-574.0,0.00037554,2]
[394760714,1763931039638,-150.0,0.00037562,7]
[394760715,1763931039648,-150.0,0.00037781,7]
[394760716,1763931039657,-576.0,0.00037946,2]
[394760717,1763931039668,-167.11767699,0.00037965,15]
[394760718,1763931039678,-511.0,0.00038,30]
[394760719,1763931039688,-1608.8128963,0.00038,2]
[394760720,1763931039698,-574.0,0.00038074,2]
[394760721,1763931039708,-574.0,0.00038151,120]
[394760722,1763931039718,-192.43472027,0.00038217,2]
[394760723,1763931039727,-150.0,0.00038329,7]
[394760724,1763931039736,-150.0,0.00038329,7]
[394760725,1763931039746,-152.13575132,0.00038329,7]
[394760726,1763931039756,-150.0,0.00038329,7]
[394760727,1763931039766,-150.0,0.00038329,7]
[394760728,1763931039775,-150.0,0.00038329,7]
[394760729,1763931039784,-150.0,0.00038329,7]
[394760730,1763931039793,-153.05562107,0.00038329,7]
[394760731,1763931039802,-150.0,0.00038329,7]
[394760732,1763931039811,-150.0,0.00038329,7]
[394760733,1763931039820,-150.0,0.00038329,7]
[394760734,1763931039829,-239.0,0.00038336,20]
[394760735,1763931039838,-222.03419501,0.00038346,2]
[394760736,1763931039848,-1500.0,0.00038355,7]
[394760737,1763931039857,-500.0,0.00038355,8]
[394760738,1763931039866,-150.0,0.00038355,20]
[394760739,1763931039875,-500.0,0.00038355,8]
[394760740,1763931039884,-500.0,0.00038355,8]
[394760741,1763931039893,-500.0,0.00038355,7]
[394760742,1763931039903,-500.0,0.00038355,7]
[394760743,1763931039913,-500.0,0.00038355,8]
[394760744,1763931039924,-500.0,0.00038355,8]
[394760745,1763931039933,-500.0,0.00038355,2]
[394760746,1763931039943,-500.0,0.00038355,2]
[394760747,1763931039952,-500.0,0.00038355,2]
[394760748,1763931039964,-500.0,0.00038356,8]
[394760749,1763931039973,-500.0,0.00038356,8]
[394760750,1763931039983,-500.0,0.00038356,8]
[394760751,1763931039994,-500.0,0.00038356,8]
[394760752,1763931040007,-500.0,0.00038356,8]
[394760753,1763931040018,-500.0,0.00038356,8]
[394760754,1763931040027,-555.02843165,0.00038356,8]
[394760755,1763931040036,-500.0,0.00038356,8]
[394760756,1763931040045,-556.95742173,0.00038356,2]
[394760757,1763931040055,-500.0,0.00038356,8]
[394760758,1763931040064,-500.0,0.00038356,8]
[394760759,1763931040073,-404.88567991,0.00038356,8]
[394760760,1763931040083,-500.0,0.00038356,8]
[394760761,1763931040092,-500.0,0.00038356,8]
[394760762,1763931040101,-500.0,0.00038356,8]
[394760763,1763931040110,-500.0,0.00038356,8]
[394760764,1763931040119,-502.92456939,0.00038356,8]
[394760765,1763931040128,-500.0,0.00038356,8]
[394760766,1763931040137,-500.0,0.00038356,8]
[394760767,1763931040146,-212.500773,0.00038356,8]
[394760768,1763931040157,-500.0,0.00038356,8]
[394760769,1763931040166,-318.41526136,0.00038356,8]
[394760770,1763931040175,-500.0,0.00038356,8]
[394760771,1763931040185,-500.0,0.00038356,8]
[394760772,1763931040194,-500.0,0.00038356,8]
[394760773,1763931040204,-500.0,0.00038356,8]
[394760774,1763931040213,-500.0,0.00038356,8]
[394760775,1763931040222,-500.0,0.00038356,8]
[394760776,1763931040232,-565.15,0.00038356,8]
[394760777,1763931040243,-500.0,0.00038356,8]
[394760778,1763931040252,-540.72,0.00038356,8]
[394760779,1763931040261,-500.0,0.00038356,8]
[394760780,1763931040271,-500.0,0.00038356,8]
[394760781,1763931040280,-500.0,0.00038356,8]
[394760782,1763931040289,-500.0,0.00038356,8]
[394760783,1763931040298,-500.0,0.00038356,8]
[394760784,1763931040308,-500.0,0.00038356,8]
[394760785,1763931040317,-500.0,0.00038356,8]
[394760786,1763931040327,-500.0,0.00038356,8]
[394760787,1763931040337,-500.0,0.00038356,8]
[394760788,1763931040346,-543.27147222,0.00038356,8]
[394760789,1763931040356,-500.0,0.00038356,8]
[394760790,1763931040364,-500.0,0.00038356,8]
[394760791,1763931040375,-500.0,0.00038356,8]
[394760792,1763931040385,-500.0,0.00038356,8]
[394760793,1763931040395,-500.0,0.00038356,8]
[394760794,1763931040405,-500.0,0.00038356,8]
[394760795,1763931040415,-500.0,0.00038356,8]
[394760796,1763931040427,-798.73,0.00038356,8]
[394760797,1763931040437,-500.0,0.00038356,8]
[394760798,1763931040446,-500.0,0.00038356,8]
[394760799,1763931040456,-500.0,0.00038356,8]
[394760800,1763931040465,-500.0,0.00038356,8]
[394760801,1763931040474,-500.0,0.00038356,8]
[394760802,1763931040483,-500.0,0.00038356,8]
[394760803,1763931040492,-439.35080995,0.00038356,8]
[394760804,1763931040501,-500.0,0.00038356,8]
[394760805,1763931040511,-500.0,0.00038356,8]
[394760806,1763931040520,-500.0,0.00038356,8]
[394760807,1763931040530,-274.96712084,0.00038356,8]
[394760808,1763931040539,-500.0,0.00038356,8]
[394760809,1763931040549,-500.0,0.00038356,8]
[394760810,1763931040558,-500.0,0.00038356,8]
[394760811,1763931040567,-500.0,0.00038356,8]
[394760812,1763931040576,-500.0,0.00038356,8]
[394760813,1763931040585,-500.0,0.00038356,8]
[394760814,1763931040594,-500.0,0.00038356,8]
[394760815,1763931040603,-500.0,0.00038356,8]
[394760816,1763931040612,-500.0,0.00038356,8]
[394760817,1763931040621,-500.0,0.00038356,8]
[394760818,1763931040631,-500.0,0.00038356,8]
[394760819,1763931040640,-500.0,0.00038356,8]
[394760820,1763931040649,-290.95014256,0.00038356,8]
[394760821,1763931040660,-500.0,0.00038356,8]
[394760822,1763931040669,-500.0,0.00038356,8]
[394760823,1763931040678,-500.0,0.00038356,2]
[394760824,1763931040690,-500.0,0.00038356,8]
[394760825,1763931040702,-500.0,0.00038356,8]
[394760826,1763931040711,-500.0,0.00038356,8]
[394760827,1763931040720,-500.0,0.00038356,8]
[394760828,1763931040729,-500.0,0.00038356,8]
[394760829,1763931040738,-500.0,0.00038356,8]
[394760830,1763931040747,-500.0,0.00038356,8]
[394760831,1763931040756,-500.0,0.00038356,8]
[394760832,1763931040765,-531.5260874,0.00038356,8]
[394760833,1763931040774,-500.0,0.00038356,8]
[394760834,1763931040783,-500.0,0.00038356,8]
[394760835,1763931040792,-500.0,0.00038356,8]
[394760836,1763931040801,-500.0,0.00038356,8]
[394760837,1763931040810,-500.0,0.00038356,8]
[394760838,1763931040819,-500.0,0.00038356,8]
[394760839,1763931040828,-500.0,0.00038356,8]
[394760840,1763931040837,-500.0,0.00038356,8]
[394760841,1763931040846,-500.0,0.00038356,8]
[394760842,1763931040856,-500.0,0.00038356,8]
[394760843,1763931040865,-500.0,0.00038356,8]
[394760844,1763931040875,-500.0,0.00038356,8]
[394760845,1763931040884,-500.0,0.00038356,8]
[394760846,1763931040894,-500.0,0.00038356,8]
[394760847,1763931040903,-500.0,0.00038356,8]
[394760848,1763931040913,-500.0,0.00038356,8]
[394760849,1763931040924,-500.0,0.00038356,8]
[394760850,1763931040934,-500.0,0.00038356,8]
[394760851,1763931040943,-500.0,0.00038356,8]
[394760852,1763931040952,-500.0,0.00038356,8]
[394760853,1763931040961,-500.0,0.00038356,8]
[394760854,1763931040970,-500.0,0.00038356,8]
[394760855,1763931040979,-501.77817234,0.00038356,8]
[394760856,1763931040988,-166.17480144,0.00038356,8]
[394760857,1763931040998,-500.0,0.00038356,8]
[394760858,1763931041011,-500.0,0.00038356,8]
[394760859,1763931041021,-500.0,0.00038356,8]
[394760860,1763931041030,-500.0,0.00038356,8]
[394760861,1763931041039,-500.0,0.00038356,8]
[394760862,1763931041049,-500.0,0.00038356,8]
[394760863,1763931041059,-500.0,0.00038356,8]
[394760864,1763931041069,-500.0,0.00038356,8]
[394760865,1763931041089,-500.0,0.00038356,8]
[394760866,1763931041098,-617.41661375,0.00038356,8]
[394760867,1763931041107,-500.0,0.00038356,8]
[394760868,1763931041117,-266.49813001,0.00038356,8]
[394760869,1763931041126,-500.0,0.00038356,8]
[394760870,1763931041135,-500.0,0.00038356,8]
[394760871,1763931041144,-500.0,0.00038356,8]
[394760872,1763931041155,-500.0,0.00038356,8]
[394760873,1763931041164,-500.0,0.00038356,8]
[394760874,1763931041173,-500.0,0.00038356,8]
[394760875,1763931041182,-500.0,0.00038356,8]
[394760876,1763931041193,-500.0,0.00038356,8]
[394760877,1763931041202,-500.0,0.00038356,8]
[394760878,1763931041212,-500.0,0.00038356,8]